Cogmind - Beta 12 @@@ ROGUE MODE // 2023.09.19 @ 16:40:00 Player: Zirov Result: Self-destructed Performance ------------- Evolutions (4) 2000 Regions Visited (12) 2400 Robots Destroyed (181) 905 Value Destroyed (6409) 6409 Prototype IDs (13) 260 Alien Tech Used (0) 0 Bonus (1162) 1162 TOTAL SCORE: 13136 Bonus ------- High Alert Combat Kills 376 Follower Combat Kills 590 Met Imprinter 300 Friendly Fire -104 Cogmind --------- Core Integrity 637/850 Matter 299/300 Energy 258/290 System Corruption 13% Temperature Cool (12) Movement Walking (120) Location -6/Extension Parts ------- > --- POWER (1) -------- Improved Deuterium Engine > --- PROPULSION (4) --- Carbon-fiber Leg Flexi-carbon Leg Flexi-carbon Leg Myomer Leg > --- UTILITY (7) ------ Large Storage Unit Advanced Targeting Computer Improved Light Armor Plating Makeshift Hacking Suite Makeshift System Shield Advanced System Restoration Module > --- WEAPON (3) ------- Heavy Assault Rifle Gauss Cannon Magnetic Acceleration Cannon > --- INVENTORY (15) --- Fission Core Carbon-fiber Leg Carbon-fiber Leg Flexi-carbon Leg Flexi-carbon Leg Improved Heat Sink Large Matter Pod (150) Advanced Visual Processing Unit Enhanced Optical Array Improved Signal Interpreter Advanced Melee Analysis Suite Long-range Tractor Beam Autogun Ripper Carbide Saw Peak State ------------ > --- POWER ------------ Improved Deuterium Engine > --- PROPULSION ------- Carbon-fiber Leg Flexi-carbon Leg Flexi-carbon Leg Myomer Leg > --- UTILITY ---------- Large Storage Unit Advanced Targeting Computer Improved Light Armor Plating Improved Powered Armor Makeshift Hacking Suite Makeshift System Shield Advanced System Restoration Module > --- WEAPON ----------- Heavy Assault Rifle Gauss Cannon Magnetic Acceleration Cannon > --- INVENTORY -------- Fission Core Carbon-fiber Leg Carbon-fiber Leg Carbon-fiber Leg Flexi-carbon Leg Improved Heat Sink Large Matter Pod Advanced Visual Processing Unit Enhanced Optical Array Improved Signal Interpreter Advanced Melee Analysis Suite Long-range Tractor Beam High-powered Shotgun Ripper Carbide Saw [Rating: 67] Favorites ----------- Power Reinforced Deuterium Engine Engine Reinforced Deuterium Engine Power Core Nuclear Core Propulsion Carbon-fiber Leg Treads Improved Treads Leg Carbon-fiber Leg Utility Large Storage Unit Device Seismic Detector Storage Large Storage Unit Processor Advanced Visual Processing Unit Hackware Hacking Suite Protection Hardened Medium Armor Plating Weapon Gauss Rifle Energy Gun Particle Gun Ballistic Gun Gauss Rifle Ballistic Cannon Advanced Assault Cannon Launcher Grenade Launcher Impact Weapon Powered Hammer Slashing Weapon Chainsword Build | -11 -10 -10 -9 -9 -8 -7 -7 -7 -7 -6 -6 -6 ------- Run | Jun Mat Min Mat Sto Mat Fac Low Low Zio Pro Fac Ext Slots Evolved 8 | . . . 2 . 2 2 . . . . 2 . Power . | . . . . . . . . . . . . . Propulsion 2 | . . . 1 . 1 . . . . . . . Utility 5 | . . . 1 . 1 1 . . . . 2 . Weapon 1 | . . . . . . 1 . . . . . . Parts Attached 184 | 7 10 1 7 16 29 59 8 8 1 9 9 20 Power 15 | 1 1 . 1 2 3 4 . . . 1 1 1 Engine 10 | 1 1 . 1 2 . 2 . . . 1 1 1 Core 5 | . . . . . 3 2 . . . . . . Reactor . | . . . . . . . . . . . . . Propulsion 50 | 2 3 . 1 4 8 12 3 1 1 3 2 10 Treads 15 | . 2 . 1 4 8 . . . . . . . Leg 35 | 2 1 . . . . 12 3 1 1 3 2 10 Wheel . | . . . . . . . . . . . . . Hover . | . . . . . . . . . . . . . Flight . | . . . . . . . . . . . . . Utility 53 | 2 4 . 4 3 8 18 1 2 . 1 5 5 Device 18 | 1 1 . 1 . 2 5 1 2 . 1 1 3 Storage 5 | 1 2 . 1 . . 1 . . . . . . Processor 6 | . 1 . 2 . 1 2 . . . . . . Hackware 8 | . . . . 1 2 3 . . . . 2 . Protection 16 | . . . . 2 3 7 . . . . 2 2 Artifact . | . . . . . . . . . . . . . Weapon 66 | 2 2 1 1 7 10 25 4 5 . 4 1 4 Energy Gun 4 | 2 . . . . . 1 . . . 1 . . Energy Cannon . | . . . . . . . . . . . . . Ballistic Gun 32 | . 2 . 1 4 6 14 2 . . . . 3 Ballistic Cannon 9 | . . . . . 3 2 1 1 . . 1 1 Launcher 6 | . . 1 . 1 1 . . 2 . 1 . . Special Weapon . | . . . . . . . . . . . . . Impact Weapon 8 | . . . . 2 . 6 . . . . . . Slashing Weapon 7 | . . . . . . 2 1 2 . 2 . . Piercing Weapon . | . . . . . . . . . . . . . Special Melee Weapon . | . . . . . . . . . . . . . Unidentified Prototypes 4 | . . . . 1 1 1 . 1 . . . . Corrupted Parts 4 | . . . . . . . . . . . . 4 System Corruption 16 | . . . . . . . . . . . . 16 Parts Lost 35 | . . . . 3 5 8 . 1 . 4 1 13 Power 2 | . . . . . . 1 . . . . . 1 Propulsion 12 | . . . . 1 1 2 . . . 2 1 5 Utility 12 | . . . . 1 3 4 . . . . . 4 Weapon 9 | . . . . 1 1 1 . 1 . 2 . 3 Highest Loss Streak 9 | . . . . 1 3 2 . 1 . 2 1 9 To Critical Strikes . | . . . . . . . . . . . . . Average Slot Usage (%) 99 | . 100 100 100 97 99 99 100 100 100 99 99 97 Engine 6 | . 14 14 11 11 4 1 7 7 7 7 6 6 Core 1 | . . . . . 4 5 . . . . . . Treads 11 | . 22 28 33 32 36 . . . . . . . Leg 18 | . 5 . . . . 29 30 30 30 30 25 25 Device 7 | . 13 14 10 11 2 4 5 7 7 7 6 6 Storage 8 | . 14 14 11 11 9 7 7 7 7 7 6 6 Processor 13 | . . . 11 . 8 18 23 23 23 23 13 8 Hackware 2 | . . . . 2 6 1 . . . . 12 13 Protection 3 | . . . . 8 8 4 1 . . . 6 8 Energy Gun 3 | . . . . . . . 7 7 7 12 13 4 Ballistic Gun 12 | . 27 22 22 8 15 17 7 . . . . 3 Ballistic Cannon 1 | . . . . . 2 . 1 6 7 1 3 10 Impact Weapon 1 | . . . . 7 . 3 . . . . . . Slashing Weapon 1 | . . . . . . . 5 5 7 6 2 . Naked Turns . | . . . . . . . . . . . . . Heaviest Build 67 | 15 30 30 52 62 65 62 56 52 48 48 61 67 Greatest Support 112 | 20 46 46 69 69 112 112 62 62 67 67 62 80 Greatest Overweight (x) 1 | . 1 . . . . . . . . . . 1 Average Overweight (x) . | . . . . . . . . . . . . . Largest Inventory Capacity 20 | 8 15 15 20 20 20 20 15 15 15 15 15 15 Average Capacity 15 | 7 13 15 17 20 20 15 15 15 15 15 15 15 Most Carried 20 | 1 15 15 16 20 20 19 15 15 15 15 15 15 Average Carried 15 | . 11 14 14 18 19 14 14 14 14 14 13 13 Final Capacity 20 | 8 15 15 20 20 20 15 15 15 15 15 15 15 Final Carried 20 | 1 15 15 16 19 20 14 15 15 15 14 15 15 Class Distribution -------------------- 48% | Mutant 28% | Scavenger-Mutant 6% | Scavenger-Skirmisher 4% | Scavenger-Gunner 3% | Assassin Dominant Class ---------------- Mutant | -10/Materials Mutant | -10/Mines Mutant | -9/Materials Mutant | -9/Storage Mutant | -8/Materials Mutant | -7/Factory Scavenger-Mutant | -7/Lower Caves Scavenger-Mutant | -7/Lower Caves Scavenger-Mutant | -7/Zion Scavenger-Mutant | -6/Proximity Caves Scavenger-Gunner | -6/Factory Scavenger-Gunner | -6/Extension Resources | -11 -10 -10 -9 -9 -8 -7 -7 -7 -7 -6 -6 -6 ----------- Run | Jun Mat Min Mat Sto Mat Fac Low Low Zio Pro Fac Ext Matter Collected 5670 | 270 426 24 326 358 1041 1865 202 281 22 187 82 586 Remotely 930 | . . . . . 167 537 . 198 22 6 . . Salvage Created 7024 | 22 442 . 328 1032 1410 2212 376 598 . 248 140 216 Parts 389 | 1 42 . 18 45 88 131 7 27 . 9 8 13 Haulers Intercepted 12 | . 2 . 2 . 2 5 . 1 . . . . Recyclers Shooed 5 | . 1 . . 2 1 . . . . . 1 . Parts Field Recycled . | . . . . . . . . . . . . . Retrieved Matter . | . . . . . . . . . . . . . Parts Self-Destructed 41 | . . . . . . . 2 18 . 21 . . Prevented . | . . . . . . . . . . . . . Kills | -11 -10 -10 -9 -9 -8 -7 -7 -7 -7 -6 -6 -6 ------- Run | Jun Mat Min Mat Sto Mat Fac Low Low Zio Pro Fac Ext Combat Hostiles Destroyed 136 | . 10 . 6 21 31 33 2 15 . 6 3 9 Melee 10 | . . . . 2 . 6 1 1 . . . . Guns 81 | . 10 . 6 12 23 22 . 1 . 4 . 3 Cannons 20 | . . . . . 6 1 1 1 . 2 3 6 AOE 17 | . . . . . 2 3 . 12 . . . . Classes Destroyed 16 | 1 6 . 2 2 2 1 . 1 . 1 . . Worker 10 | . 1 . . 2 3 4 . . . . . . Builder 6 | . . . 1 . 1 4 . . . . . . Tunneler 1 | 1 . . . . . . . . . . . . Hauler 12 | . 2 . 2 . 2 5 . 1 . . . . Recycler 3 | . . . . 1 1 1 . . . . . . Operator 4 | . 2 . 1 . 1 . . . . . . . Watcher 9 | . 3 . . 1 . 5 . . . . . . Swarmer 21 | . 6 . 1 . 6 3 . . . 2 . 3 Grunt 69 | . 4 . 2 10 15 19 . 14 . 3 2 . Brawler 2 | . . . . 1 . 1 . . . . . . Duelist 2 | . . . . . 1 1 . . . . . . Sentry 27 | . . . 3 10 7 1 . . . . 1 5 Hunter 4 | . . . . . 2 . 2 . . . . . Programmer 8 | . . . . . . 8 . . . . . . Behemoth 1 | . . . . . . . . . . 1 . . Thug 1 | . . . . . . . . . . . . 1 Mutant 1 | . . . . . . . . 1 . . . . Best Kill Streak 6 | 1 5 . 4 4 5 6 1 6 . 3 2 3 Combat Bots Only 5 | . 5 . 3 4 3 5 1 5 . 3 2 3 Max Kills in Single Turn 4 | 1 1 . 2 1 2 3 1 4 . 1 1 1 Gunslinging 1 | . . . 1 . . 1 . . . . . . Exploded 4 | . . . . . 2 2 . 4 . . . . Melee 1 | . . . . 1 . 1 1 1 . . . . Uniques/NPCs Destroyed . | . . . . . . . . . . . . . Combat | -11 -10 -10 -9 -9 -8 -7 -7 -7 -7 -6 -6 -6 -------- Run | Jun Mat Min Mat Sto Mat Fac Low Low Zio Pro Fac Ext Damage Taken 9575 | . 230 12 401 1115 2181 2371 99 288 . 732 146 2000 Core 1060 | . 55 . 77 185 188 189 20 49 . 84 . 213 Absorbed by Shields 60 | . . . . . . . . . . . . 60 Regen/Repaired (Parts) 302 | . . . . . 302 . . . . . . . Core Remaining (%) 65 | 100 . 78 . 34 65 . . . . 51 . . Volleys Fired 354 | 1 32 . 24 26 100 94 2 14 . 21 9 31 Largest 3 | 2 2 . 2 2 2 3 3 2 . 3 3 3 Hottest 193 | 80 46 . 46 46 96 104 141 113 . 184 193 193 Shots Fired 803 | 2 64 . 48 52 197 255 8 20 . 45 26 86 Gun 679 | 2 64 . 48 52 166 251 6 6 . 35 18 31 Cannon 110 | . . . . . 28 4 2 6 . 7 8 55 Launcher 14 | . . . . . 3 . . 8 . 3 . . Special . | . . . . . . . . . . . . . Kinetic 707 | . 64 . 48 52 194 254 4 6 . 7 8 70 Thermal 80 | . . . . . . 1 4 6 . 35 18 16 Explosive 14 | . . . . . 3 . . 8 . 3 . . Electromagnetic 2 | 2 . . . . . . . . . . . . Robot Hit Streak 27 | 2 19 . 11 16 18 18 4 9 . 11 19 27 Robot Miss Streak 7 | . 7 . 6 4 4 5 1 1 . 3 3 5 Penetration Max 1 | . . . . . . 1 . . . . . . Secondary Targets 9 | . 1 . 1 . 1 5 . . . 1 . . Max Gunslinging Chain 1 | . 1 . 1 . 1 1 . . . 1 . . Shots Hit Robots 646 | 2 42 . 39 87 148 177 15 18 . 30 23 65 Core Hits 330 | 1 30 . 20 31 85 80 6 25 . 16 12 24 Critical Kills 9 | . . . . 3 2 4 . . . . . . Critical Parts Destroyed 14 | . . . . 6 1 7 . . . . . . Critical Strikes 33 | . . . . 9 3 11 1 . . . 4 5 Burn 2 | . . . . . . . . . . . 1 1 Destroy 10 | . . . . 1 3 6 . . . . . . Blast 7 | . . . . . . . . . . . 3 4 Smash 13 | . . . . 8 . 5 . . . . . . Sever 1 | . . . . . . . 1 . . . . . Melee Attacks 171 | . . . . 83 . 71 10 5 1 . 1 . Impact 130 | . . . . 83 . 47 . . . . . . Slashing 41 | . . . . . . 24 10 5 1 . 1 . Piercing . | . . . . . . . . . . . . . Sneak Attacks 8 | . . . . 5 . 3 . . . . . . Combat Hostiles 1 | . . . . 1 . . . . . . . . Follow-up Attacks . | . . . . . . . . . . . . . Damage Inflicted 17093 | 24 658 . 628 2520 2930 4972 558 1708 . 865 450 1780 Guns 8769 | 24 658 . 617 704 1877 3435 42 98 . 571 218 525 Cannons 2210 | . . . . . 419 101 39 54 . 140 232 1225 Explosions 2618 | . . . . . 599 441 . 1424 . 154 . . Melee 3418 | . . . . 1816 . 993 477 132 . . . . Ramming 78 | . . . 11 . 35 2 . . . . . 30 Kinetic 9752 | . 658 . 617 704 2296 3536 52 54 . 140 232 1463 Thermal 1895 | . . . . . 251 441 29 98 . 571 218 287 Explosive 1926 | . . . . . 348 . . 1424 . 154 . . Electromagnetic 24 | 24 . . . . . . . . . . . . Impact 2429 | . . . . 1816 . 613 . . . . . . Slashing 989 | . . . . . . 380 477 132 . . . . Piercing . | . . . . . . . . . . . . . Highest Corruption 16 | . . . . . . 10 10 10 10 1 . 16 Average Corruption 7 | . . . . . . 6 10 10 10 1 . 13 Corruption Purged 3 | . . . . . . . . . . . . 3 Corruption Blocked . | . . . . . . . . . . . . . Effects 204 | . . . . . . 100 49 30 10 9 . 6 Message Errors 48 | . . . . . . 22 12 5 2 4 . 3 Matter Fused 46 | . . . . . . 19 15 8 2 1 . 1 Heat Flow Errors 27 | . . . . . . 12 6 5 2 2 . . Energy Discharges 21 | . . . . . . 13 4 1 3 . . . Parts Rejected 4 | . . . . . . 4 . . . . . . Parts Fused 4 | . . . . . . . 1 3 . . . . Data Loss (minor) 32 | . . . . . . 17 7 5 1 1 . 1 Data Loss (major) 9 | . . . . . . 2 2 3 . 1 . 1 Misfires 8 | . . . . . . 6 2 . . . . . Alerts 3 | . . . . . . 3 . . . . . . Weapon Failures 2 | . . . . . . 2 . . . . . . Overload Shots . | . . . . . . . . . . . . . Overflow Damage 1030 | . . . . 421 53 434 73 21 . . . 28 Projectiles 46 | . . . . . . . . 18 . . . 28 Explosions 101 | . . . . . 53 47 . 1 . . . . Melee 883 | . . . . 421 . 387 73 2 . . . . Knockbacks 23 | . . . . 4 1 6 . 1 . 1 4 6 Impact 7 | . . . . 3 . 4 . . . . . . Kinetic 15 | . . . . . 1 2 . 1 . 1 4 6 Secondary 1 | . . . . 1 . . . . . . . . Self-Inflicted Damage 260 | . . . . . 93 167 . . . . . . Shots 3 | . . . . . 1 2 . . . . . . Rammed 5 | . . . 1 . 4 . . . . . . . Targets Rammed 9 | . . . 1 . 5 2 . . . . . 1 Kicked 3 | . . . . . . 2 . . . . . 1 Crushed 1 | . . . . . 1 . . . . . . . Highest Temperature 417 | 18 4 . 19 20 291 260 223 304 167 211 417 270 Average Temperature 70 | 12 2 . 7 5 44 65 76 91 84 65 159 93 Received Heat Transfer 3307 | . 36 . 204 441 954 810 . 217 . 114 66 465 Effects 2 | . . . . . 1 . . . . . 1 . Energy Bleed 2 | . . . . . 1 . . . . . 1 . Siege Activations . | . . . . . . . . . . . . . Robots Corrupted . | . . . . . . . . . . . . . Combat Hostiles . | . . . . . . . . . . . . . Parts Fried 16 | . . . . 14 . 2 . . . . . . Impact Corruptions 28 | . . . . 17 . 11 . . . . . . Robots Melted . | . . . . . . . . . . . . . Combat Hostiles . | . . . . . . . . . . . . . Parts Melted 6 | . . . 1 . . . . 1 . 2 . 2 Heat Transferred 3281 | . . . . . 150 250 74 222 . 1257 608 720 Parts Sabotaged . | . . . . . . . . . . . . . Parts Stolen . | . . . . . . . . . . . . . Parts Stripped . | . . . . . . . . . . . . . Power Chain Reactions . | . . . . . . . . . . . . . Missiles Intercepted . | . . . . . . . . . . . . . Alert | -11 -10 -10 -9 -9 -8 -7 -7 -7 -7 -6 -6 -6 ------- Run | Jun Mat Min Mat Sto Mat Fac Low Low Zio Pro Fac Ext Peak Influence 1065 | 5 277 23 318 319 579 774 . . . . 1065 614 Initial 918 | . 3 8 8 83 98 263 . . . . 918 448 Average 213 | 1 63 8 162 133 219 245 . . . . 974 428 Maximum Alert Level 3 | . 1 . 1 1 2 3 . . . . 3 2 Low Security (%) 57 | 100 92 100 77 71 44 47 . . . . . 10 Level 1 28 | . 7 . 22 28 45 35 . . . . . 22 Level 2 9 | . . . . . 9 10 . . . . . 67 Level 3 4 | . . . . . . 5 . . . . 100 . Level 4 . | . . . . . . . . . . . . . Level 5 . | . . . . . . . . . . . . . High Security . | . . . . . . . . . . . . . Max Security . | . . . . . . . . . . . . . Squads Dispatched 34 | . 4 . 2 1 5 16 . . . . 1 5 Investigation 10 | . 3 . 1 . 1 2 . . . . . 3 Extermination 8 | . . . . . . 8 . . . . . . Reinforcement 13 | . 1 . 1 1 4 4 . . . . 1 1 Assault 3 | . . . . . . 2 . . . . . 1 Garrison . | . . . . . . . . . . . . . Intercept . | . . . . . . . . . . . . . Searches Triggered 2 | . . . . . . . . . . . 1 1 Construction Impeded 2 | . . . . . 2 . . . . . . . Haulers Reinforced 3 | . . . . . . 2 . . . . 1 . Active Scanning Responses . | . . . . . . . . . . . . . Cargo Convoy Interrupts . | . . . . . . . . . . . . . Stealth | -11 -10 -10 -9 -9 -8 -7 -7 -7 -7 -6 -6 -6 --------- Run | Jun Mat Min Mat Sto Mat Fac Low Low Zio Pro Fac Ext Distress Signals 11 | . 1 . . 1 8 . . . . . . 1 Communications Jammed . | . . . . . . . . . . . . . Distress Signals . | . . . . . . . . . . . . . Times Spotted 238 | . 19 1 13 26 54 61 2 15 . 11 5 31 Peak Tracking Total 10 | . 5 1 4 3 7 7 1 5 . 3 3 10 Tactical Retreats 14 | . 2 . 1 4 2 4 . . . . 1 . Traps | -11 -10 -10 -9 -9 -8 -7 -7 -7 -7 -6 -6 -6 ------- Run | Jun Mat Min Mat Sto Mat Fac Low Low Zio Pro Fac Ext Traps Triggered 2 | . 1 . . . . 1 . . . . . . Indirectly . | . . . . . . . . . . . . . Trap Hack Attempts . | . . . . . . . . . . . . . Triggered . | . . . . . . . . . . . . . Disarmed . | . . . . . . . . . . . . . Reprogrammed 4 | . . . 4 . . . . . . . . . Reused . | . . . . . . . . . . . . . Traps Extracted . | . . . . . . . . . . . . . Installed . | . . . . . . . . . . . . . Triggered . | . . . . . . . . . . . . . Machines | -11 -10 -10 -9 -9 -8 -7 -7 -7 -7 -6 -6 -6 ---------- Run | Jun Mat Min Mat Sto Mat Fac Low Low Zio Pro Fac Ext Machines Disabled 26 | . . . 1 6 3 13 . 1 . . 1 1 Max in Single Turn 2 | . . . . 1 2 2 . 1 . . 1 . Machines Repaired . | . . . . . . . . . . . . . Machines Sabotaged . | . . . . . . . . . . . . . Overloaded Fab Kills . | . . . . . . . . . . . . . Hacking | -11 -10 -10 -9 -9 -8 -7 -7 -7 -7 -6 -6 -6 --------- Run | Jun Mat Min Mat Sto Mat Fac Low Low Zio Pro Fac Ext Machines Accessed 59 | . 9 . 5 9 10 17 1 . . . 3 5 Terminals 42 | . 7 . 4 9 7 8 . . . . 2 5 Fabricators 4 | . . . . . . 4 . . . . . . Repair Stations 1 | . . . . . 1 . . . . . . . Recycling Units 4 | . 2 . . . . 2 . . . . . . Scanalyzers 6 | . . . 1 . 2 2 . . . . 1 . Garrison Access 1 | . . . . . . 1 . . . . . . Total Hacks 167 | . 26 . 15 28 34 36 1 . . . 13 14 Successful 80 | . 10 . 7 16 25 11 1 . . . 5 5 Failed 87 | . 16 . 8 12 9 25 . . . . 8 9 Catastrophic 13 | . 1 . 2 3 1 5 . . . . 1 . Database Lockouts . | . . . . . . . . . . . . . Manual 37 | . 8 . 3 3 10 11 . . . . 2 . Terminals 127 | . 23 . 10 28 22 20 . . . . 10 14 Fabricators 6 | . . . . . . 6 . . . . . . Repair Stations 5 | . . . . . 5 . . . . . . . Recycling Units 7 | . 3 . . . . 4 . . . . . . Scanalyzers 20 | . . . 5 . 7 5 . . . . 3 . Garrison Access 1 | . . . . . . 1 . . . . . . Terminal Hacks 49 | . 7 . 3 16 10 5 1 . . . 2 5 Robot Analysis 1 | . . . . . . 1 . . . . . . Prototype ID Bank 6 | . 3 . 1 1 1 . . . . . . . Open Door 9 | . . . . 3 . . 1 . . . . 5 Branch Access Points 3 | . . . . 1 2 . . . . . . . Emergency Access Points 1 | . 1 . . . . . . . . . . . Terminal Index 3 | . . . . . 1 1 . . . . 1 . Scanalyzer Index 1 | . . . . . 1 . . . . . . . Alert Level 1 | . . . . 1 . . . . . . . . Unreport Threat 4 | . . . . 2 1 1 . . . . . . Locate Traps 5 | . 1 . 1 . 1 1 . . . . 1 . Reprogram Traps 1 | . . . 1 . . . . . . . . . Dispatch Records 2 | . 1 . . 1 . . . . . . . . Investigation Status 1 | . . . . 1 . . . . . . . . Recall Investigation 1 | . 1 . . . . . . . . . . . Recall Reinforcements 1 | . . . . 1 . . . . . . . . Hauler Manifests 2 | . . . . 1 1 . . . . . . . Registered Components 3 | . . . . 1 1 1 . . . . . . Zone Layout 4 | . . . . 3 1 . . . . . . . Fabricator Hacks 1 | . . . . . . 1 . . . . . . Build 1 | . . . . . . 1 . . . . . . Repair Station Hacks 4 | . . . . . 4 . . . . . . . Scan Component 2 | . . . . . 2 . . . . . . . Repair 2 | . . . . . 2 . . . . . . . Recycling Unit Hacks 1 | . 1 . . . . . . . . . . . Report Inventory 1 | . 1 . . . . . . . . . . . Scanalyzer 15 | . . . 4 . 7 2 . . . . 2 . Insert Component 7 | . . . 2 . 3 1 . . . . 1 . Analyze 8 | . . . 2 . 4 1 . . . . 1 . Garrison Access Hacks . | . . . . . . . . . . . . . Unauthorized Hacks 10 | . 2 . . . 4 3 . . . . 1 . Terminals 5 | . . . . . 3 1 . . . . 1 . Assimilate 1 | . . . . . 1 . . . . . . . Operators 4 | . . . . . 2 1 . . . . 1 . Fabricators 1 | . . . . . . 1 . . . . . . Download 1 | . . . . . . 1 . . . . . . Repair Stations 1 | . . . . . 1 . . . . . . . Mechanics 1 | . . . . . 1 . . . . . . . Recycling Units 3 | . 2 . . . . 1 . . . . . . Mask 1 | . . . . . . 1 . . . . . . Tunnel 2 | . 2 . . . . . . . . . . . Scanalyzers . | . . . . . . . . . . . . . Garrison Access . | . . . . . . . . . . . . . Data Cores Recovered 1 | . 1 . . . . . . . . . . . Used . | . . . . . . . . . . . . . Hacking Detections 54 | . 7 . 5 9 9 17 . . . . 3 4 Full Trace Events 8 | . 1 . 2 . 1 1 . . . . . 3 Feedback Events . | . . . . . . . . . . . . . Feedback Blocked . | . . . . . . . . . . . . . Robot Schematics Acquired 4 | . . . . . . . . . 4 . . . Robots Built . | . . . . . . . . . . . . . Authchips . | . . . . . . . . . . . . . Time . | . . . . . . . . . . . . . Total Robot Build Rating . | . . . . . . . . . . . . . Part Schematics Acquired 22 | . . . 2 . 3 1 . . 15 . 1 . Parts Built 2 | . . . . . . 2 . . . . . . Authchips . | . . . . . . . . . . . . . Time 53 | . . . . . . 53 . . . . . . Total Part Build Rating 12 | . . . . . . 12 . . . . . . Parts Repaired 2 | . . . . . 2 . . . . . . . Time 76 | . . . . . 76 . . . . . . . Parts Recycled . | . . . . . . . . . . . . . Recycled Matter . | . . . . . . . . . . . . . Retrieved Matter . | . . . . . . . . . . . . . Retrieved Components . | . . . . . . . . . . . . . Parts Scanalyzed 7 | . . . 2 . 3 1 . . . . 1 . Part Schematics Acquired 7 | . . . 2 . 3 1 . . . . 1 . Parts Damaged 1 | . . . 1 . . . . . . . . . Bothacking | -11 -10 -10 -9 -9 -8 -7 -7 -7 -7 -6 -6 -6 ------------ Run | Jun Mat Min Mat Sto Mat Fac Low Low Zio Pro Fac Ext Used RIF Installer . | . . . . . . . . . . . . . Robots Hacked . | . . . . . . . . . . . . . Non-combat . | . . . . . . . . . . . . . Combat . | . . . . . . . . . . . . . Robot Hacks Applied . | . . . . . . . . . . . . . Relay Couplers Released . | . . . . . . . . . . . . . Fabnet Peak Effective % . | . . . . . . . . . . . . . Robots Rewired 3 | . . . . . . . . 3 . . . . Allies Hacked . | . . . . . . . . . . . . . Hacks Repelled . | . . . . . . . . . . . . . Allies | -11 -10 -10 -9 -9 -8 -7 -7 -7 -7 -6 -6 -6 -------- Run | Jun Mat Min Mat Sto Mat Fac Low Low Zio Pro Fac Ext Total Allies 13 | . . 3 . . 1 . . 3 . . . 6 Largest Group 5 | . . 3 3 . 1 . . 3 3 3 . 5 Highest-Rated Group 263 | . . 40 40 . 10 . . 75 75 75 . 263 Highest-Rated Ally 159 | . . 16 16 . 10 . . 25 25 25 . 159 Total Orders . | . . . . . . . . . . . . . Ally Attacks 127 | . . . 34 . . . . . . 33 . 60 Total Damage 2587 | . . . 393 . . . . . . 650 . 1544 Kills 22 | . . . 6 . . . . . . 4 . 12 Allies Corrupted . | . . . . . . . . . . . . . Allies Melted . | . . . . . . . . . . . . . Intel | -11 -10 -10 -9 -9 -8 -7 -7 -7 -7 -6 -6 -6 ------- Run | Jun Mat Min Mat Sto Mat Fac Low Low Zio Pro Fac Ext Robot Analysis Total 1 | . . . . . . 1 . . . . . . Derelict Logs Recovered 9 | . . 1 . . . . 2 1 2 3 . . Drone Launches . | . . . . . . . . . . . . . Drone Recoveries . | . . . . . . . . . . . . . Exploration | -11 -10 -10 -9 -9 -8 -7 -7 -7 -7 -6 -6 -6 ------------- Run | Jun Mat Min Mat Sto Mat Fac Low Low Zio Pro Fac Ext Turns Passed 18724 | 70 2387 342 605 1653 2327 4887 1469 800 1473 1589 356 766 Spaces Moved 11592 | 50 1234 211 307 746 1072 3238 1163 551 1176 1205 165 474 Core 5 | 5 . . . . . . . . . . . . Treads 3226 | . 886 211 307 746 1072 4 . . . . . . Legs 8361 | 45 348 . . . . 3234 1163 551 1176 1205 165 474 Wheels . | . . . . . . . . . . . . . Hover . | . . . . . . . . . . . . . Flight . | . . . . . . . . . . . . . Fastest Speed 50 | 50 120 160 160 160 160 120 122 122 122 122 120 120 Average Speed 132 | 113 149 160 160 160 161 120 122 122 123 123 121 126 Slowest Speed 190 | 120 190 160 160 160 162 160 122 122 127 127 122 190 Overloaded Moves . | . . . . . . . . . . . . . Propulsion Burnouts . | . . . . . . . . . . . . . Robots Hopped . | . . . . . . . . . . . . . Cave-ins Triggered . | . . . . . . . . . . . . . Exploration Rate (%) 59 | 4 99 37 34 70 74 56 97 58 86 98 5 51 Regions Visited 12 Branch Regions 7 Pre-discovered Areas 7 | . 2 1 . 1 . . . . 2 1 . . Known Exits Taken 9 | . 1 1 1 . . 1 1 1 1 1 1 . Unknown Exits Taken 3 | 1 . . . 1 1 . . . . . . . Scrap Searched 14 | . . 1 . . . . 2 2 4 5 . . Spaces Dug 44 | . . . . 5 . 38 . . . . 1 . Terrain Destroyed 299 | . . . . 5 31 125 1 83 . 45 2 7 Melee 44 | . . . . 5 . 38 . . . . 1 . Projectile 27 | . . . . . 10 3 1 4 . 1 1 7 AOE 228 | . . . . . 21 84 . 79 . 44 . . Terrain Rammed . | . . . . . . . . . . . . . Walls Destroyed . | . . . . . . . . . . . . . Machines Disabled . | . . . . . . . . . . . . . Actions | -11 -10 -10 -9 -9 -8 -7 -7 -7 -7 -6 -6 -6 --------- Run | Jun Mat Min Mat Sto Mat Fac Low Low Zio Pro Fac Ext Total 13985 | 58 1718 216 372 1068 1482 3905 1194 648 1191 1261 296 576 Wait 1415 | . 415 3 28 175 234 383 1 20 10 9 108 29 Move 11580 | 49 1233 210 306 745 1071 3237 1162 550 1175 1204 164 474 Hop . | . . . . . . . . . . . . . Pick Up 113 | 1 16 1 4 11 19 26 4 6 2 9 3 11 Fast Attach 28 | 7 4 . . 2 5 4 2 . . . . 4 Attach 49 | . . . 3 4 8 15 1 1 . 4 4 9 Detach 14 | . 3 . 1 3 1 4 . . . . 1 1 Swap 107 | . 6 1 4 10 16 40 5 7 1 5 5 7 Drop 104 | . 9 1 1 9 23 29 7 5 2 9 1 8 Fire 354 | 1 32 . 24 26 100 94 2 14 . 21 9 31 Melee 171 | . . . . 83 . 71 10 5 1 . 1 . Ram . | . . . . . . . . . . . . . Kick 3 | . . . . . . 2 . . . . . 1 Crush 6 | . . . 1 . 5 . . . . . . . Escape Stasis . | . . . . . . . . . . . . . Rewire 41 | . . . . . . . . 40 . . . 1 Trap . | . . . . . . . . . . . . . Miscellaneous . | . . . . . . . . . . . . . Route ------- -11/Junkyard -10/Materials (discovered 4 exits: *Mat x3 / *Min) -10/Mines -9/Materials (discovered 3 exits: [*Min] / *Sto x2) -9/Storage (discovered 2 exits: *Mat / Rec) -8/Materials (discovered 2 exits: *Fac x2) -7/Factory -7/Lower Caves -7/Lower Caves (discovered 2 exits: *Fac / *Zio) -7/Zion (discovered 2 exits: Dee / *Pro) -6/Proximity Caves -6/Factory (discovered 3 exits: *Fac x2 / *Ext) -6/Extension History --------- Turn | Location | Event 13 | -11/Junkyard | Discovered new exit (range 16) 71 | -11/Junkyard | Entered Materials 284 | -10/Materials | Discovered new exit (range 7) 310 | -10/Materials | Build established: Mutant 461 | -10/Materials | Discovered new exit (range 16) 730 | -10/Materials | Discovered new exit (range 14) 1812 | -10/Materials | Identified exit to Mines 1883 | -10/Materials | Identified exit to Materials 2116 | -10/Materials | Discovered exit to Materials (range 3) 2458 | -10/Materials | Entered Mines 2477 | -10/Mines | Met a Derelict bent on vengeance 2502 | -10/Mines | Assisted by bots powering up and referring to "LRC-V3" 2515 | -10/Mines | Learned location of Storage (-9) 2563 | -10/Mines | Assembled infested the area 2578 | -10/Mines | Learned Materials trap positions 2696 | -10/Mines | A weapon hastily lodged in a ceiling crevice suddenly fell to the ground 2776 | -10/Mines | Discovered exit to Materials (range 5) 2800 | -10/Mines | Entered Materials 2800 | -9/Materials | Accompanied by 3 allies 2800 | -9/Materials | Evolved 2 slots: Propulsion x1, Utility x1 2801 | -9/Materials | Loaded intel: 16 trap records 2862 | -9/Materials | Discovered new exit (range 8) 3055 | -9/Materials | Discovered new exit (range 12) 3089 | -9/Materials | Discovered new exit (range 11) 3144 | -9/Materials | Identified exit to Storage 3405 | -9/Materials | Entered Storage 3448 | -9/Storage | Learned location of Armory (-3) 3892 | -9/Storage | Identified exit to Recycling 4548 | -9/Storage | Core integrity fell below 50% 5031 | -9/Storage | Discovered new exit (range 16) 5058 | -9/Storage | Entered Materials 5058 | -8/Materials | Evolved 2 slots: Propulsion x1, Utility x1 5932 | -8/Materials | Lost 3 parts (1n1u1w) 6206 | -8/Materials | Repaired Hrd. Medium Armor Plating 6371 | -8/Materials | Discovered new exit (range 19) 6655 | -8/Materials | Repaired Hrd. Medium Armor Plating 7285 | -8/Materials | Discovered new exit (range 17) 7385 | -8/Materials | Entered Factory 7385 | -7/Factory | Evolved 2 slots: Utility x1, Weapon x1 7899 | -7/Factory | Build established: Scavenger-Skirmisher 8447 | -7/Factory | Fabricated Gyrokinetic Inverter (x2) 9463 | -7/Factory | Build established: Assassin 10167 | -7/Factory | Discovered new exit (range 6) 10172 | -7/Factory | Identified exit to Lower Caves 10401 | -7/Factory | Build established: Mutant 11785 | -7/Factory | First assault squad dispatched 11912 | -7/Factory | System corruption reached 10% 12272 | -7/Factory | Entered Lower Caves 12303 | -7/Lower Caves | Build established: Scavenger-Mutant 12391 | -7/Lower Caves | Learned location of 1 exit from Factory 12730 | -7/Lower Caves | Build established: Scavenger-Gunner 12732 | -7/Lower Caves | Discovered new exit (range 10) 12743 | -7/Lower Caves | Identified exit to Lower Caves 13092 | -7/Lower Caves | Build established: Scavenger-Mutant 13741 | -7/Lower Caves | Entered another Lower Caves area 13742 | -7/Lower Caves | Encountered a Warlord checkpoint 13830 | -7/Lower Caves | Discovered new exit (range 19) 13860 | -7/Lower Caves | Found Imp. Powered Armor 13887 | -7/Lower Caves | Identified exit to Factory 14218 | -7/Lower Caves | Learned 4 Factory zone layouts 14391 | -7/Lower Caves | Attacked by a delusional Derelict stockpiling Unaware 14523 | -7/Lower Caves | Discovered new exit (range 5) 14527 | -7/Lower Caves | Identified exit to Zion 14541 | -7/Lower Caves | Entered Zion 14541 | -7/Zion | Accompanied by 3 allies 14589 | -7/Zion | Discovered new exit (range 15) 14595 | -7/Zion | Learned location of Warlord (-5) 14622 | -7/Zion | Identified exit to Proximity Caves 14778 | -7/Zion | System corruption cleaned by Quarantine Array 15075 | -7/Zion | Identified exit to Deep Caves 15184 | -7/Zion | Learned location of Data Miner (-6) 16014 | -7/Zion | Entered Proximity Caves 16014 | -6/Proximity Caves | Accompanied by 3 allies 16016 | -6/Proximity Caves | Attracted the attention of an 0b10 checkpoint 16118 | -6/Proximity Caves | Spotter reported a threat 16171 | -6/Proximity Caves | Spotter reported a threat 16203 | -6/Proximity Caves | Spotter reported a threat 16224 | -6/Proximity Caves | Spotter reported a threat 16298 | -6/Proximity Caves | Spotter reported a threat 16405 | -6/Proximity Caves | Learned Factory security intel 16436 | -6/Proximity Caves | Learned Factory trap positions 16445 | -6/Proximity Caves | Spotter reported a threat 16498 | -6/Proximity Caves | Spotter reported a threat 16569 | -6/Proximity Caves | Discovered exit to Factory (range 9) 16869 | -6/Proximity Caves | Spotted B-75 Beast 17521 | -6/Proximity Caves | Destroyed B-75 Beast 17603 | -6/Proximity Caves | Entered Factory 17603 | -6/Factory | Evolved 2 slots: Utility x2 17604 | -6/Factory | Identified exit to Extension 17605 | -6/Factory | Identified exit to Factory 17607 | -6/Factory | Loaded intel: 105 trap records 17816 | -6/Factory | Discovered exit to Factory (range 13) 17953 | -6/Factory | Search patrols dispatched 17959 | -6/Factory | Entered Extension 18062 | -6/Extension | Build established: Scavenger-Gunner 18063 | -6/Extension | Spotted B-75 Beast 18295 | -6/Extension | Lost 9 parts (5n2u2w) 18309 | -6/Extension | Search patrols dispatched 18447 | -6/Extension | Rescued A7 18457 | -6/Extension | Rescued a captive Derelict 18495 | -6/Extension | Rescued a captive Derelict 18572 | -6/Extension | Rescued a captive Derelict 18573 | -6/Extension | Rescued a captive Derelict 18616 | -6/Extension | System corruption reached 10% 18659 | -6/Extension | First assault squad dispatched 18675 | -6/Extension | Rescued a captive Derelict 18702 | -6/Extension | Spotted B-75 Beast 18707 | -6/Extension | Build established: Scavenger-Tank 18725 | -6/Extension | Self-destructed Last Messages --------------- 18703_ Adv. System Restoration Module purges 1% system corruption (13%). 18703_ U-05 Engineer builds a Wall. 18705_ G-50 Soldier knocked back. 18709_ G-50 Soldier IFF system glitched. 18709_ S-27 Virus destroyed. 18711_ Acquired 5 matter. 18712_ G-50 Soldier system terminally corrupted. 18712_ A7: "I've done al##MISSION::FAILED##" 18712_ A7 destroyed. 18713_ SKHU/W>IXM88YXUI JP:Z2LUMHEJD 18716_ S-27 Virus system corrupted by crushing effect. 18716_ Machine disabled. 18717_ S-27 Virus system terminally corrupted. 18720_ 7T-5SM(b) destroyed. 18721_ U-05 Engineer builds a Wall. 18722_ C-30 ARC bursts open, deploying its payload. 18722_ S-27 Virus unfolds itself. 18724_ Imp. Powered Armor destroyed. 18725_ Acquired 4 matter. 18725_ S-27 Virus destroyed. Map ----- +----------------------------------------------------+ | ????????### #????????????????????????????????????? | | ??????????# #????????????????????????????????????? | | ??????????# #????????????????????????????????????? | | ??????????# #????????????????????????????????????? | | ??????????# #????????????????????????????????????? | | ??????????# #????????????????????????????????????? | | ????????### #????????????????????????????????????? | | ??????###T#%#????????????????????????????????????? | | ??????# #????????? ??????????????????????????? | | ??????##### #????????? ??????????????????????????? | | ??????????# #????????? #?????????????????????????? | | ??????????# #????????? #?????????????????????????? | | ??????????# #????????# #?????????????????????????? | | ??????????# #????????# #?????????????????????????? | | ??????????# #????????# #?????????????????????????? | | ??????????#%#????????# #?????????????????????????? | | ??????????# #????????# #?????????????????????????? | | ??????????# #?######?# #?????????????????????????? | | ????????###/### ## ### ###???????????????????????? | | ????????#%%$%! R u "" ""#???????????????????????? | | ????????#=!!B% %" #???????????????????????? | | ????????# =BB % #???????????????????????? | | ????????# =%g ##??????????????????????? | | ######### s % ;############???????????? | | u * = ????????? | | @ [%* C ????????? | | =%s ????????? | | BB s ????????? | | % BB u R ?????????? | | ######### R ###############?????????? | | ????????# k #???????????????????????? | | ????????# #???????????????????????? | | ????????# #???????????????????????? | | ????????# #???????????????????????? | | ????????######T#"""#######???????????????????????? | | ?????????????????????????????????????????????????? | | ?????????????????????????????????????????????????? | | | | | | | | | | | | | | | | | | | | | | | | | | | +----------------------------------------------------+ Best States ------------- Heat Dissipation 65 Energy Generation 18 Energy Capacity 290 Matter Stores 300 Matter Capacity 300 Sight Range 20 Robot Scan Range 15 Terrain Scan Density 10 Armor Coverage 625 Resistance: TH 15 Phase Shifting 5 Evasion (%) 60 Targeting Accuracy 8 Recoil Reduction 4 Offensive Hacking 11 Defensive Hacking 11 Item Schematics ----------------- Imp. Aluminum Leg | -9/Materials | Scanalyzed Mak. Hammer | -9/Materials | Scanalyzed Adv. Targeting Computer | -8/Materials | Scanalyzed Carbon-fiber Leg | -8/Materials | Scanalyzed Adv. Visual Processing Unit | -8/Materials | Scanalyzed Titanium Leg | -7/Factory | Scanalyzed Mak. Laser | -7/Zion | Archive Lgt. Angular Momentum Engine | -7/Zion | Archive Lgt. Fission Core | -7/Zion | Archive Coolant Injector | -7/Zion | Archive Mak. Leg | -7/Zion | Archive Adv. Heat Sink | -7/Zion | Archive Mak. Trap Scanner | -7/Zion | Archive Angular Momentum Engine | -7/Zion | Archive Matter Filter | -7/Zion | Archive Xenon Bombardment Thruster | -7/Zion | Archive 0b10 Decoder Chip [Generic] | -7/Zion | Archive Hvy. Ion Cannon | -7/Zion | Archive Matter Compressor | -7/Zion | Archive Slug Cannon | -7/Zion | Archive Phasing Sabre | -7/Zion | Archive Flexi-carbon Leg | -6/Factory | Scanalyzed Robot Schematics ------------------ S-27 Virus | -7/Zion | Archive H-55 Commando | -7/Zion | Archive L-41 Fighter | -7/Zion | Archive X-77 Beamer | -7/Zion | Archive Fabricated ------------ Gyrokinetic Inverter | x2 | -7/Factory | Preloaded Alien Tech Used ----------------- None Achievements -------------- Batter Up Prison Break Prolific Hacker Challenges ------------ None Game ------ Seed RocketAdvancedModule Manual? 0 Play Time 03:36:14 Cumulative 93.3 hours Start 2023.09.13 @ 14:36:52 End 2023.09.19 @ 16:40:00 Sessions 11 Manual Loads 0 Difficulty Rogue Special Mode None Game No. 97 Rogue 97 Adventurer 0 Explorer 0 Win Type - Total 0 Types 0/0/0/0/0/0/0/0/0 Lore% 35 Gallery% 38 Achievement% 29 Wizard Run 0 Options --------- ASCII 1 Keyboard 1 Movement Numpad Keybinds 0 Fullscreen 1 Font 18/SmallcapsGlow Map View 76x50 Tactical HUD 1 Map Filters NONE Filters NONE Steam 1 RUN: 79e8f15d-734f-401d-a56a-d4aa27e1e246